fUSD/lending_fUSD_20240818
["ID","MTS","AMOUNT","RATE_DAILY","PERIOD"]
[335184073,1723945845295,-406.81761617,0.00010999,2]
[335184074,1723945845304,-500.0,0.00010999,2]
[335184075,1723945845313,-252.98068955,0.00010999,2]
[335184076,1723945845322,-375.22634804,0.00010999,2]
[335184077,1723945845331,-1147993.63829433,0.00011,2]
[335184078,1723945845340,-152020.34064779,0.00011,2]
[335184079,1723945845352,-1274061.25569671,0.00011,2]
[335184080,1723945846113,-150.0,0.00010734,2]
[335184082,1723945846123,-150.0,0.00010738,2]
[335184084,1723945846133,-150.0,0.00010743,2]
[335184086,1723945846142,-150.0,0.00010744,2]
[335184087,1723945846153,-150.0,0.00010753,2]
[335184088,1723945846162,-145.48125118,0.0001076,2]
[335184089,1723945846174,-4.51874882,0.0001076,2]
[335184090,1723945846185,-150.0,0.00010769,2]
[335184091,1723945846195,-150.0,0.00010772,2]
[335184092,1723945846204,-128.64952001,0.00010772,2]
[335184093,1723945846291,-150.0,0.00010766,2]
[335184094,1723945846301,-21.35047999,0.00010772,2]
[335184095,1723945846311,-150.0,0.00010785,2]
[335184096,1723945846320,-114.20661714,0.00010786,2]
[335184097,1723945846331,-35.79338286,0.00010786,2]
[335184098,1723945846342,-150.0,0.00010792,2]
[335184099,1723945846352,-150.0,0.00010813,2]
[335184100,1723945846361,-150.0,0.00010815,2]
[335184101,1723945846371,-14.20661714,0.00010821,2]
[335184102,1723945846382,-135.79338286,0.00010821,2]
[335184103,1723945846394,-150.0,0.00010821,2]
[335184104,1723945846409,-150.0,0.00010832,2]
[335184105,1723945846419,-150.0,0.00010844,2]
[335184106,1723945846429,-42.98161714,0.00010845,2]
[335184107,1723945846440,-107.01838286,0.00010845,2]
[335184108,1723945846450,-150.0,0.00010846,2]
[335184109,1723945846459,-150.0,0.00010846,2]
[335184110,1723945846468,-150.0,0.00010849,2]
[335184111,1723945846477,-138.17410861,0.00010849,2]
[335184112,1723945846488,-11.82589139,0.00010849,2]
[335184113,1723945846498,-150.0,0.0001085,2]
[335184114,1723945846507,-150.0,0.00010856,2]
[335184115,1723945846516,-150.0,0.00010859,2]
[335184116,1723945846526,-150.0,0.00010868,2]
[335184117,1723945846536,-150.0,0.00010878,2]
[335184118,1723945846547,-150.0,0.0001088,2]
[335184119,1723945846557,-150.0,0.00010885,2]
[335184120,1723945846568,-150.0,0.00010894,2]
[335184121,1723945846578,-150.0,0.00010898,2]
[335184122,1723945846587,-150.0,0.00010902,2]
[335184123,1723945846597,-150.0,0.00010903,2]
[335184124,1723945846607,-150.0,0.00010914,2]
[335184125,1723945846616,-150.0,0.00010918,2]
[335184126,1723945846626,-150.0,0.00010921,2]
[335184127,1723945846636,-150.0,0.00010922,2]
[335184128,1723945846645,-150.0,0.0001093,2]
[335184129,1723945846655,-150.0,0.00010934,2]
[335184130,1723945846664,-150.0,0.00010935,2]
[335184131,1723945846674,-150.0,0.00010936,2]
[335184132,1723945846683,-150.0,0.00010949,2]
[335184133,1723945846694,-150.0,0.00010953,2]
[335184134,1723945846705,-150.0,0.00010956,2]
[335184135,1723945846715,-150.0,0.00010957,2]
[335184136,1723945846726,-150.0,0.00010959,2]
[335184137,1723945846737,-150.0,0.00010961,2]
[335184138,1723945846747,-150.0,0.00010962,2]
[335184139,1723945846756,-67.45559347,0.00010965,2]
[335184140,1723945862267,200.0,9.902e-05,2]
[335184141,1723945867587,505.87,8.219e-05,2]
[335184145,1723945936033,700.0,9.06e-05,2]
[335184146,1723945936538,700.0,9.234e-05,2]
[335184147,1723945937023,700.0,9.273e-05,2]
[335184148,1723945939433,500.0,9.734e-05,2]
[335184149,1723945939783,500.0,8.482e-05,2]
[335184150,1723945940660,773.96915408,9.206e-05,2]
[335184151,1723945947243,500.0,8.892e-05,2]
[335184152,1723945947735,500.0,9.562e-05,2]
[335184153,1723945950649,500.0,8.767e-05,2]
[335184154,1723945955757,500.0,8.9e-05,2]
[335184155,1723945956066,500.0,9.88e-05,2]
[335184156,1723945957069,1000.0,8.545e-05,2]
[335184164,1723946223597,26195.69528983,8.545e-05,2]
[335184165,1723946235376,600.0,9.362e-05,2]
[335184166,1723946239766,500.0,9.311e-05,2]
[335184167,1723946240075,500.0,9.959e-05,2]
[335184169,1723946241473,500.0,9.226e-05,2]
[335184170,1723946249745,500.0,9.588e-05,2]
[335184171,1723946250067,500.0,9.981e-05,2]
[335184172,1723946250916,500.0,8.992e-05,2]
[335184173,1723946251238,500.0,9.769e-05,2]
[335184174,1723946251340,500.0,9.535e-05,2]
[335184175,1723946251372,900.0,8.556e-05,2]
[335184176,1723946251824,900.0,8.786e-05,2]
[335184177,1723946251861,500.0,9.546e-05,2]
[335184178,1723946252961,900.0,9.064e-05,2]
[335184179,1723946253615,900.0,9.131e-05,2]
[335184180,1723946253960,900.0,9.628e-05,2]
[335184181,1723946254465,900.0,9.695e-05,2]
[335184185,1723946314603,17463.79685989,9.695e-05,2]
[335184186,1723946318932,155.19690729,9.943e-05,2]
[335184187,1723946319863,200.0,9.831e-05,2]
[335184188,1723946363163,502.88,8.219e-05,2]
[335184189,1723946394859,368.81557153,9.943e-05,2]
[335184191,1723946411603,14553.16404991,9.831e-05,2]
[335184193,1723946433359,1000.0,9.835e-05,2]
[335184194,1723946467883,441.79842779,9.943e-05,2]
[335184195,1723946508610,14553.16404991,9.835e-05,2]
[335184196,1723946519616,14553.16404991,9.835e-05,2]
[335184197,1723946535662,500.0,9.482e-05,2]
[335184198,1723946536087,600.0,9.507e-05,2]
[335184203,1723946547005,500.0,9.464e-05,2]
[335184204,1723946549052,500.0,9.402e-05,2]
[335184205,1723946550027,800.0,8.933e-05,2]
[335184206,1723946550930,800.0,9.093e-05,2]
[335184207,1723946551427,800.0,9.128e-05,2]
[335184208,1723946551931,800.0,9.791e-05,2]
[335184209,1723946577490,457.25262295,9.943e-05,2]
[335184212,1723946629613,7582.19847,9.791e-05,2]
[335184215,1723946749628,7582.19847,9.791e-05,2]
[335184216,1723946759620,7582.19847,9.791e-05,2]
[335184218,1723946809285,150.69664748,9.888e-05,2]
[335184219,1723946819902,23880.0,9.821e-05,2]
[335184223,1723946836107,600.0,8.463e-05,2]
[335184228,1723946841978,500.0,9.245e-05,2]
[335184236,1723946849826,500.0,9.559e-05,2]
[335184237,1723946851374,500.0,8.917e-05,2]
[335184238,1723946852012,500.0,8.725e-05,2]
[335184244,1723946855053,944.21075181,9.501e-05,2]
[335184245,1723946858104,600.0,9.569e-05,2]
[335184246,1723946858591,600.0,9.898e-05,2]
[335184247,1723946859616,600.0,9.919e-05,2]
[335184251,1723946864538,499.6,8.219e-05,2]
[335184252,1723946877634,7582.19847,8.463e-05,2]
[335184253,1723946922898,200.0,9.817e-05,2]
[335184254,1723946967542,10000.0,0.00016,120]
[335184255,1723946992146,7582.19847,9.817e-05,2]
[335184256,1723947020257,667.48289024,9.943e-05,2]
[335184257,1723947022157,7582.19847,9.817e-05,2]
[335184259,1723947038199,-162.90831957,0.0001,2]
[335184260,1723947038211,-264.29587236,0.0001,2]
[335184261,1723947038381,-285.70412764,0.0001,2]
[335184262,1723947038392,-379.62607071,0.0001,2]
[335184263,1723947038406,-1267.57707354,0.0001,2]
[335184264,1723947038420,-679.27995712,0.0001,2]
[335184265,1723947038434,-3628.98387863,0.0001,2]
[335184266,1723947038448,-136.60302,0.0001,2]
[335184267,1723947038459,-480.93140811,0.0001,2]
[335184268,1723947038471,-623.44199861,0.0001,2]
[335184269,1723947038569,-1816.49752,0.0001,2]
[335184270,1723947038582,-999.05767994,0.0001,2]
[335184271,1723947038595,-1500.0,0.0001,2]
[335184272,1723947038610,-298.93586434,0.0001,2]
[335184281,1723947040455,-885.17095629,0.0001,2]
[335184282,1723947040469,-1594.4435325,0.0001,2]
[335184283,1723947040482,-500.0,0.0001,2]
[335184284,1723947040496,-1531.85830089,0.0001,2]
[335184285,1723947040509,-1180.22303273,0.0001,2]
[335184286,1723947040522,-771.22976259,0.0001,2]
[335184287,1723947040533,-500.0,0.00010024,2]
[335184288,1723947040543,-631.01232566,0.00010097,2]
[335184289,1723947040555,-354.62208659,0.00010164,2]
[335184290,1723947040567,-501.12281975,0.00010367,2]
[335184291,1723947040578,-159.17339184,0.00010466,2]
[335184292,1723947042202,-340.42660816,0.00010466,2]
[335184293,1723947042212,-610.3991196,0.00010505,2]
[335184294,1723947042226,-910.07583321,0.00010505,2]
[335184295,1723947042237,-150.0,0.00010627,2]
[335184296,1723947042247,-500.0,0.00010628,2]
[335184297,1723947042258,-499.99,0.00010628,2]
[335184298,1723947042270,-866.17,0.00010628,2]
[335184299,1723947042279,-3094.3172297,0.00010699,2]
[335184300,1723947042289,-301.42,0.000107,2]
[335184301,1723947042299,-421.32,0.000107,2]
[335184302,1723947042309,-301.66,0.000107,2]
[335184303,1723947042320,-716.66,0.000107,2]
[335184304,1723947042331,-421.32,0.000107,2]
[335184305,1723947042341,-150.0,0.000107,2]
[335184306,1723947042357,-835.58,0.000107,2]
[335184307,1723947042367,-421.32,0.000107,2]
[335184309,1723947042378,-2852.39166507,0.00010713,2]
[335184311,1723947042389,-1078.68735426,0.00010713,2]
[335184314,1723947042400,-150.0,0.00010732,2]
[335184316,1723947042410,-150.0,0.00010732,2]
[335184318,1723947042422,-150.0,0.00010733,2]
[335184320,1723947042432,-150.0,0.00010734,2]
[335184322,1723947042443,-150.0,0.00010736,2]
[335184324,1723947042452,-155.0,0.0001074,2]
[335184326,1723947042462,-150.0,0.00010741,2]
[335184328,1723947042472,-150.0,0.00010743,2]
[335184330,1723947042483,-16801.182,0.0001075,2]
[335184332,1723947042493,-150.0,0.00010752,2]
[335184334,1723947042504,-150.0,0.00010757,2]
[335184337,1723947042514,-150.0,0.00010758,2]
[335184339,1723947042524,-150.0,0.00010759,2]
[335184341,1723947042535,-150.0,0.00010759,2]
[335184342,1723947042545,-150.0,0.00010761,2]
[335184343,1723947042555,-150.0,0.00010766,2]
[335184344,1723947042565,-150.0,0.00010768,2]
[335184345,1723947042575,-150.0,0.00010776,2]
[335184346,1723947042586,-150.0,0.00010779,2]
[335184347,1723947042596,-150.0,0.0001078,2]
[335184348,1723947042607,-150.0,0.00010782,2]
[335184349,1723947042616,-150.0,0.00010785,2]
[335184350,1723947042626,-150.0,0.00010785,2]
[335184351,1723947042637,-260.0746,0.0001079,2]
[335184352,1723947042647,-207.3187,0.0001079,2]
[335184353,1723947042657,-150.0,0.00010793,2]
[335184354,1723947042667,-150.0,0.00010793,2]
[335184355,1723947042677,-150.0,0.00010794,2]
[335184356,1723947042688,-150.0,0.00010799,2]
[335184357,1723947042698,-1225.68641327,0.00010799,2]
[335184358,1723947042708,-1000.0,0.000108,2]
[335184359,1723947042718,-150.0,0.00010802,2]
[335184360,1723947042728,-150.0,0.00010802,2]
[335184361,1723947042738,-150.0,0.00010803,2]
[335184362,1723947042749,-150.0,0.00010809,2]
[335184363,1723947042759,-150.0,0.00010813,2]
[335184364,1723947042769,-150.0,0.00010815,2]
[335184365,1723947042779,-150.0,0.00010817,2]
[335184366,1723947042790,-150.0,0.00010817,2]
[335184367,1723947042800,-150.0,0.00010822,2]
[335184368,1723947042810,-150.0,0.00010825,2]
[335184369,1723947042820,-150.0,0.00010828,2]
[335184370,1723947042830,-150.0,0.0001083,2]
[335184371,1723947042839,-150.0,0.00010831,2]
[335184372,1723947042849,-150.0,0.00010831,2]
[335184373,1723947042859,-150.0,0.00010831,2]
[335184374,1723947042870,-150.0,0.00010835,2]
[335184375,1723947042880,-150.0,0.00010838,2]
[335184376,1723947042890,-150.0,0.00010845,2]
[335184377,1723947042900,-150.0,0.00010845,2]
[335184378,1723947042910,-689.74214608,0.00010852,2]
[335184379,1723947042920,-150.0,0.00010854,2]
[335184380,1723947042930,-150.0,0.00010856,2]
[335184381,1723947042940,-236.83350752,0.00010861,2]
[335184382,1723947042951,-602.99773717,0.00010861,2]
[335184383,1723947042961,-329.45451937,0.00010861,2]
[335184384,1723947042971,-150.0,0.00010862,2]
[335184385,1723947042982,-298.54812869,0.00010862,2]
[335184386,1723947042992,-537.02052236,0.00010862,2]
[335184387,1723947043005,-119.15099247,0.00010862,2]
[335184388,1723947043016,-271.56849126,0.00010862,2]
[335184389,1723947043026,-216.67896121,0.00010862,2]
[335184390,1723947043036,-155.3819453,0.00010862,2]
[335184391,1723947043046,-155.22328025,0.00010862,2]
[335184392,1723947043057,-19.3880223,0.00010868,2]
[335184400,1723947043371,-940.096497,0.00010566,2]
[335184401,1723947043383,-201.33187633,0.00010566,2]
[335184402,1723947043393,-192.5623477,0.00010862,2]
[335184403,1723947043403,-130.6119777,0.00010868,2]
[335184404,1723947043413,-150.0,0.00010868,2]
[335184405,1723947043426,-1534.822,0.0001087,2]
[335184406,1723947043436,-172.276,0.0001087,2]
[335184407,1723947043446,-446.0,0.00010871,2]
[335184408,1723947043457,-150.0,0.00010873,2]
[335184409,1723947043467,-150.0,0.00010875,2]
[335184410,1723947043477,-150.0,0.00010876,2]
[335184411,1723947043488,-2968.90553425,0.00010882,2]
[335184412,1723947043500,-593.06011771,0.00010882,2]
[335184413,1723947043513,-164.03434804,0.00010882,2]
[335184414,1723947043523,-299.26151558,0.00010882,2]
[335184415,1723947043536,-1303.32848442,0.00010882,2]
[335184416,1723947043546,-1076.0,0.00010882,2]
[335184417,1723947043557,-150.0,0.00010882,2]
[335184418,1723947043568,-150.0,0.00010883,2]
[335184419,1723947043579,-358.75176222,0.00010888,2]
[335184420,1723947043589,-402.43671386,0.00010888,2]
[335184421,1723947043600,-150.0,0.00010889,2]
[335184422,1723947043609,-411.01026,0.0001089,2]
[335184423,1723947043622,-274.31302223,0.0001089,2]
[335184424,1723947043632,-567.0342192,0.0001089,2]
[335184425,1723947043643,-3237.5112,0.0001089,2]
[335184426,1723947043653,-5188.39663985,0.0001089,2]
[335184428,1723947043949,-164.7411861,0.00010888,2]
[335184429,1723947043964,-523.82116545,0.0001089,2]
[335184430,1723947043975,-2219.76933468,0.0001089,2]
[335184434,1723947044961,-422.17999998,0.0001089,2]
[335184435,1723947044972,-75789.24846004,0.0001089,2]
[335184436,1723947044981,-150.0,0.00010891,2]
[335184437,1723947044992,-150.0,0.00010893,2]
[335184438,1723947045001,-150.0,0.00010893,2]
[335184439,1723947045010,-16698.8278,0.00010894,2]
[335184440,1723947045019,-23062.1457,0.00010894,2]
[335184441,1723947045029,-150.0,0.00010894,2]
[335184442,1723947045038,-150.0,0.00010896,2]
[335184443,1723947045048,-150.0,0.00010899,2]
[335184444,1723947045057,-164.56067163,0.00010899,2]
[335184445,1723947045066,-164.56067163,0.00010899,2]
[335184446,1723947045076,-164.56067163,0.00010899,2]
[335184447,1723947045085,-164.56067163,0.00010899,2]
[335184448,1723947045094,-164.56067163,0.00010899,2]
[335184449,1723947045103,-15499.3761,0.000109,2]
[335184450,1723947045113,-521.2888,0.000109,2]
[335184451,1723947045122,-1831.8265,0.000109,2]
[335184452,1723947045131,-171.7717053,0.000109,2]
[335184453,1723947045140,-164.56067163,0.000109,2]
[335184454,1723947045150,-1005.0,0.000109,2]
[335184455,1723947045160,-150.0,0.00010902,2]
[335184456,1723947045170,-150.0,0.00010903,2]
[335184457,1723947045179,-150.0,0.00010903,2]
[335184458,1723947045189,-150.0,0.00010908,2]
[335184459,1723947045198,-150.0,0.00010911,2]
[335184460,1723947045208,-150.0,0.00010916,2]
[335184461,1723947045219,-150.0,0.0001092,2]
[335184462,1723947045230,-150.0,0.00010928,2]
[335184463,1723947045241,-150.0,0.00010931,2]
[335184464,1723947045250,-150.0,0.00010931,2]
[335184465,1723947045260,-150.0,0.00010935,2]
[335184466,1723947045270,-150.0,0.0001094,2]
[335184467,1723947045280,-150.0,0.0001094,2]
[335184468,1723947045290,-150.0,0.00010942,2]
[335184469,1723947045299,-150.0,0.00010946,2]
[335184470,1723947045308,-150.0,0.00010947,2]
[335184471,1723947045318,-150.0,0.00010948,2]
[335184472,1723947045327,-527.88690969,0.00010949,2]
[335184473,1723947045338,-1746.15813419,0.00010949,2]
[335184474,1723947045351,-667.68708073,0.00010949,2]
[335184475,1723947045361,-150.0,0.0001095,2]
[335184476,1723947045371,-150.0,0.00010951,2]
[335184477,1723947045380,-150.0,0.00010952,2]
[335184478,1723947045390,-150.0,0.00010955,2]
[335184479,1723947045399,-150.0,0.00010956,2]
[335184480,1723947045408,-150.0,0.00010958,2]
[335184481,1723947045417,-500.0,0.00010958,2]
[335184482,1723947045427,-150.0,0.00010959,2]
[335184483,1723947045436,-250.0,0.00010959,2]
[335184484,1723947045446,-2000.0,0.00010959,2]
[335184485,1723947045456,-82.54440653,0.00010965,2]
[335184486,1723947045465,-500.0,0.00010966,2]
[335184487,1723947045474,-150.0,0.0001097,2]
[335184488,1723947045483,-200.0,0.00010973,2]
[335184489,1723947045492,-150.0,0.00010977,2]
[335184490,1723947045501,-150.0,0.00010978,2]
[335184491,1723947045511,-150.0,0.00010979,2]
[335184492,1723947045522,-840.0,0.0001098,2]
[335184493,1723947045532,-150.0,0.0001098,2]
[335184494,1723947045543,-150.0,0.0001098,2]
[335184495,1723947045553,-150.0,0.00010981,2]
[335184496,1723947045562,-150.0,0.00010982,2]
[335184497,1723947045572,-150.0,0.00010986,2]
[335184498,1723947045581,-688.636,0.00010987,2]
[335184499,1723947045590,-1258.0,0.00010987,2]
[335184500,1723947045599,-150.0,0.00010993,2]
[335184501,1723947045608,-150.0,0.00010993,2]
[335184502,1723947045619,-710.5875901,0.00010994,2]
[335184503,1723947045628,-1059.7037125,0.00010994,2]
[335184504,1723947045639,-8776.9791934,0.00010994,2]
[335184505,1723947045649,-150.0,0.00010997,2]
[335184506,1723947045659,-150.0,0.00010998,2]
[335184507,1723947045669,-150.0,0.00010998,2]
[335184508,1723947045678,-500.0,0.00010998,2]
[335184509,1723947045687,-826.99,0.00010998,2]
[335184510,1723947045696,-87533.6272365,0.00010999,2]
[335184511,1723947045705,-150.0,0.00010999,2]
[335184512,1723947045716,-150.0,0.00010999,2]
[335184513,1723947045728,-209.07967012,0.00010999,2]
[335184514,1723947045739,-826.99,0.00010999,2]
[335184515,1723947045748,-826.99,0.00010999,2]
[335184516,1723947045758,-826.99,0.00010999,2]
[335184517,1723947045768,-826.99,0.00010999,2]
[335184518,1723947045778,-826.99,0.00010999,2]
[335184519,1723947045787,-826.99,0.00010999,2]
[335184520,1723947045796,-826.99,0.00010999,2]
[335184521,1723947045805,-826.99,0.00010999,2]
[335184522,1723947045815,-826.99,0.00010999,2]
[335184523,1723947045824,-826.99,0.00010999,2]
[335184524,1723947045833,-826.99,0.00010999,2]
[335184525,1723947045843,-826.99,0.00010999,2]
[335184526,1723947045853,-826.99,0.00010999,2]
[335184527,1723947045863,-826.99,0.00010999,2]
[335184528,1723947045872,-826.99,0.00010999,2]
[335184529,1723947045883,-826.99,0.00010999,2]
[335184530,1723947045893,-826.99,0.00010999,2]
[335184531,1723947045904,-826.99,0.00010999,2]
[335184532,1723947045914,-826.99,0.00010999,2]
[335184533,1723947045925,-826.99,0.00010999,2]
[335184534,1723947045935,-826.99,0.00010999,2]
[335184535,1723947045944,-827.13195329,0.00010999,2]
[335184536,1723947045953,-232.05719693,0.00010999,2]
[335184537,1723947045963,-170.35297401,0.00010999,2]
[335184538,1723947045973,-681173.05255027,0.00011,2]
[335184539,1723947045987,-1919.52883686,0.00011,2]
[335184540,1723947046002,-3664.0000002,0.00011,2]
[335184541,1723947046014,-491.55288875,0.00011,2]
[335184542,1723947046324,360.0,9.954e-05,2]
[335184543,1723947046434,-155.0,0.00010862,2]
[335184544,1723947046444,-756.0,0.00010972,2]
[335184545,1723947046454,-4975.8478948,0.00011,2]
[335184546,1723947046465,-50896.69181916,0.00011,2]
[335184547,1723947046478,-4844.39583406,0.00011,2]
[335184548,1723947046488,-15997.39404076,0.00011,2]
[335184549,1723947046499,-313.06330969,0.00011,2]
[335184550,1723947046647,-3854.16700004,0.00011,2]
[335184551,1723947140206,500.0,9.335e-05,2]
[335184552,1723947145110,500.0,9.757e-05,2]
[335184553,1723947147380,500.0,9.537e-05,2]
[335184555,1723947151514,500.0,9.621e-05,2]
[335184556,1723947153144,600.0,9.071e-05,2]
[335184557,1723947153650,600.0,9.18e-05,2]
[335184559,1723947198168,7582.19847,9.18e-05,2]
[335184562,1723947329174,5137.26690963,9.18e-05,2]
[335184564,1723947394118,492.57,8.219e-05,2]
[335184565,1723947436549,600.0,9.622e-05,2]
[335184568,1723947534218,1000.0,9.889e-05,2]
[335184569,1723947577718,186.66,9.872e-05,2]
[335184571,1723947692915,688.31811901,9.943e-05,2]
[335184572,1723947733138,1697.57,9.819e-05,2]
[335184573,1723947735895,500.0,9.363e-05,2]
[335184574,1723947736382,500.0,9.823e-05,2]
[335184575,1723947740493,500.0,9.109e-05,2]
[335184576,1723947742869,500.0,9.559e-05,2]
[335184577,1723947744119,955.05142471,9.469e-05,2]
[335184578,1723947746473,500.0,9.455e-05,2]
[335184580,1723947840469,250.0,9.81e-05,2]
[335184582,1723947903253,348.41020976,9.888e-05,2]
[335184583,1723947903836,348.41020976,9.899e-05,2]
[335184584,1723947904147,348.41020976,9.91e-05,2]
[335184585,1723947904496,348.41020976,9.921e-05,2]
[335184586,1723947904854,348.41020976,9.932e-05,2]
[335184587,1723947905190,348.41020976,9.943e-05,2]
[335184588,1723947905560,348.41020976,9.954e-05,2]
[335184589,1723947905898,348.41020976,9.965e-05,2]
[335184590,1723947906216,348.41020976,9.976e-05,2]
[335184591,1723947940927,150.0,9.888e-05,2]
[335184592,1723947941241,150.0,9.903e-05,2]
[335184593,1723947941572,150.0,9.917e-05,2]
[335184594,1723947941651,491.1,8.219e-05,2]
[335184595,1723947941928,150.0,9.932e-05,2]
[335184596,1723947942233,150.0,9.947e-05,2]
[335184597,1723947942544,150.0,9.962e-05,2]
[335184598,1723947942869,150.0,9.977e-05,2]
[335184599,1723947969320,150.0,9.888e-05,2]
[335184600,1723947971923,150.0,9.888e-05,2]
[335184601,1723947976135,150.0,9.888e-05,2]
[335184602,1723947976313,150.0,9.902e-05,2]
[335184603,1723947976650,150.0,9.916e-05,2]
[335184604,1723947977409,150.0,9.93e-05,2]
[335184605,1723947977757,150.0,9.945e-05,2]
[335184606,1723947978080,150.0,9.959e-05,2]
[335184607,1723947978401,150.0,9.973e-05,2]
[335184608,1723948009856,150.0,9.888e-05,2]
[335184609,1723948012567,150.0,9.888e-05,2]
[335184610,1723948015630,150.0,9.888e-05,2]
[335184611,1723948018154,150.0,9.888e-05,2]
[335184612,1723948018477,150.0,9.928e-05,2]
[335184613,1723948018831,150.0,9.969e-05,2]
[335184614,1723948024627,2579.3,9.205e-05,2]
[335184629,1723948033797,150.0,9.888e-05,2]
[335184630,1723948035312,619.63582225,9.835e-05,2]
[335184631,1723948035550,500.0,9.897e-05,2]
[335184632,1723948039539,500.0,9.366e-05,2]
[335184633,1723948040031,500.0,9.883e-05,2]
[335184634,1723948040340,150.0,9.888e-05,2]
[335184635,1723948040569,500.0,9.622e-05,2]
[335184636,1723948045661,150.0,9.888e-05,2]
[335184637,1723948048998,500.0,9.058e-05,2]
[335184641,1723948053909,500.0,9.949e-05,2]
[335184651,1723948132022,186.68,9.183e-05,2]
[335184655,1723948154019,1000.0,9.179e-05,2]
[335184657,1723948171093,-206.92746043,9.988e-05,2]
[335184658,1723948178332,562.83,9.179e-05,2]
[335184660,1723948208842,531.68,9.175e-05,2]
[335184681,1723948232558,-141.48274933,9.988e-05,2]
[335184682,1723948232567,-150.0,9.988e-05,2]
[335184683,1723948232576,-150.0,9.992e-05,2]
[335184684,1723948232586,-150.0,9.998e-05,2]
[335184685,1723948232595,-348.41020976,9.999e-05,2]
[335184686,1723948232604,-256.07866755,9.999e-05,2]
[335184687,1723948232613,-156.14180465,9.999e-05,2]
[335184688,1723948232622,-278.75362519,9.999e-05,2]
[335184689,1723948232633,-550.0,0.0001,2]
[335184690,1723948232642,-211.04003889,0.0001,2]
[335184691,1723948232651,-150.0,0.00010002,2]
[335184692,1723948232661,-150.0,0.00010006,2]
[335184693,1723948232670,-218.17848476,0.00010009,2]
[335184694,1723948232679,-493.87811631,0.00010009,2]
[335184695,1723948232689,-167.02003574,0.00010009,2]
[335184696,1723948232698,-348.41020976,0.0001001,2]
[335184697,1723948232707,-150.0,0.0001001,2]
[335184698,1723948232717,-500.0,0.00010012,2]
[335184699,1723948232726,-150.0,0.00010016,2]
[335184700,1723948232735,-883.15,0.00010016,2]
[335184701,1723948232745,-348.41020976,0.00010021,2]
[335184702,1723948232754,-150.0,0.00010021,2]
[335184703,1723948232763,-300.0,0.00010025,2]
[335184704,1723948232772,-433.92005672,0.00010026,2]
[335184705,1723948232781,-150.0,0.0001003,2]
[335184706,1723948232791,-348.41020976,0.00010032,2]
[335184707,1723948232800,-150.0,0.00010036,2]
[335184708,1723948232809,-348.41020976,0.00010043,2]
[335184709,1723948232818,-150.0,0.00010045,2]
[335184710,1723948232827,-150.0,0.00010045,2]
[335184711,1723948232837,-150.0,0.0001005,2]
[335184712,1723948232846,-150.0,0.00010051,2]
[335184713,1723948232855,-76.78463458,0.00010054,2]
[335184714,1723948232866,-271.62557518,0.00010054,2]
[335184715,1723948232876,-78.08378484,0.00010059,2]
[335184716,1723948232886,-71.91621516,0.00010059,2]
[335184717,1723948232895,-150.0,0.00010065,2]
[335184718,1723948232905,-348.41020976,0.00010065,2]
[335184719,1723948232914,-150.0,0.00010066,2]
[335184720,1723948232923,-150.0,0.00010073,2]
[335184721,1723948232932,-348.41020976,0.00010076,2]